bitfinex-derivatives/quotes_BNBF0:USTF0_20250907
["timestamp","ask_amount","ask_price","bid_price","bid_amount"]
[1757239011537,2.57716963,869.2,867.97,0.19995174]
[1757239012537,2.57716963,868.98,867.97,0.19995174]
[1757239013137,2.57716963,868.92,867.97,0.19995174]
[1757239014938,3.61141484,869.21,867.97,0.19995174]
[1757239015441,3.61141484,869.21,867.98,0.69807756]
[1757239015738,0.8,869.69,867.97,0.19995174]
[1757239015938,0.8,869.69,867.98,0.69807756]
[1757239016135,0.8,869.69,867.99,0.69807756]
[1757239016438,0.8,869.69,868.0,0.69807756]
[1757239016638,0.8,869.69,868.01,0.69807756]
[1757239016834,0.8,869.69,868.02,0.69807756]
[1757239017038,0.8,869.69,868.03,0.69807756]
[1757239017338,0.8,869.69,868.04,0.69807756]
[1757239017634,0.8,869.69,868.05,0.69807756]
[1757239017934,5.16325912,869.86,867.97,0.19995174]
[1757239018134,5.16325912,869.86,867.98,0.701972]
[1757239018334,5.16325912,869.86,867.99,0.701972]
[1757239018535,5.16325912,869.86,868.0,0.701972]
[1757239018733,5.16325912,869.86,867.97,0.19995174]
[1757239018935,5.16325912,869.86,867.98,0.70196879]
[1757239019135,5.16325912,869.86,867.99,0.70196879]
[1757239019338,5.16325912,869.86,868.0,0.70196879]
[1757239019536,5.16325912,869.86,867.97,0.19995174]
[1757239019736,5.16325912,869.86,867.98,0.70196587]
[1757239019940,5.16325912,869.82,867.99,0.70196587]
[1757239020140,5.16325912,869.82,868.15,0.20000345]
[1757239022137,0.20003219,869.91,868.15,0.20000345]
[1757239023843,3.60917854,869.48,868.15,0.20000345]
[1757239024046,2.57798467,869.16,868.15,0.20000345]
[1757239024245,3.60917854,869.48,868.15,0.20000345]
[1757239024848,3.60917854,869.5,868.15,0.20000345]
[1757239025945,3.60917854,869.39,868.15,0.20000345]
[1757239027048,3.60917854,869.35,868.15,0.20000345]
[1757239027751,1.54676583,868.37,868.15,0.20000345]
[1757239028047,3.60917854,869.35,868.15,0.20000345]
[1757239029056,3.60917854,869.38,868.15,0.20000345]
[1757239030153,3.60917854,869.34,868.15,0.20000345]
[1757239031152,3.60917854,869.28,868.15,0.20000345]
[1757239032156,3.60917854,869.12,868.15,0.20000345]
[1757239033355,2.57801455,868.88,868.15,0.20000345]
[1757239033554,0.5682642,868.88,868.15,0.20000345]
[1757239033754,3.60917854,869.18,868.15,0.20000345]
[1757239034354,3.60917854,869.25,868.15,0.20000345]
[1757239035355,3.60917854,869.35,868.15,0.20000345]
[1757239036556,3.60917854,869.27,868.15,0.20000345]
[1757239037659,1.03129955,868.18,868.15,0.20000345]
[1757239037858,2.17364372,869.27,868.15,0.20000345]
[1757239038460,5.16325912,869.74,868.15,0.20000345]
[1757239038761,0.20003219,869.91,868.15,0.20000345]
[1757239042456,2.5815423,869.35,868.15,0.20000345]
[1757239043459,2.5815423,869.33,868.15,0.20000345]
[1757239043958,2.5815423,869.34,868.15,0.20000345]
[1757239045657,2.5815423,869.5,868.15,0.20000345]
[1757239046063,2.5815423,869.49,868.15,0.20000345]
[1757239047865,1.54898608,868.71,868.15,0.20000345]
[1757239048059,1.54898608,868.65,868.15,0.20000345]
[1757239048665,2.5815423,869.33,868.15,0.20000345]
[1757239049166,2.5815423,869.38,868.15,0.20000345]
[1757239049862,2.5815423,869.26,868.15,0.20000345]
[1757239050766,2.5815423,869.24,868.15,0.20000345]
[1757239051763,2.5815423,869.23,868.15,0.20000345]
[1757239052364,3.61417786,869.44,868.15,0.20000345]
[1757239052365,2.5815423,869.14,868.15,0.20000345]
[1757239052864,2.5815423,869.11,868.15,0.20000345]
[1757239053965,2.5815423,869.1,868.15,0.20000345]
[1757239054368,2.5815423,869.09,868.15,0.20000345]
[1757239055472,3.61417786,869.47,868.15,0.20000345]
[1757239055473,2.5815423,869.03,868.15,0.20000345]
[1757239056169,3.61417786,869.47,868.15,0.20000345]
[1757239056368,3.61417786,869.34,868.15,0.20000345]
[1757239057370,3.61417786,869.4,868.15,0.20000345]
[1757239058170,0.74311122,869.4,868.15,0.20000345]
[1757239058469,5.16325912,869.87,868.15,0.20000345]
[1757239059369,0.20003219,869.91,868.15,0.20000345]
[1757239064974,0.81886038,869.9,868.15,0.20000345]
[1757239065178,2.58078503,869.11,868.15,0.20000345]
[1757239065881,2.58078503,869.22,868.15,0.20000345]
[1757239068778,2.58078503,869.21,868.15,0.20000345]
[1757239069881,2.58078503,869.2,868.15,0.20000345]
[1757239071282,2.58078503,869.23,868.15,0.20000345]
[1757239073981,2.58078503,869.22,868.15,0.20000345]
[1757239074586,2.58078503,869.26,868.15,0.20000345]
[1757239075487,2.58078503,869.22,868.15,0.20000345]
[1757239075685,1.14525128,869.22,868.15,0.20000345]
[1757239076990,3.61276624,869.57,868.15,0.20000345]
[1757239077389,3.61276624,869.6,868.15,0.20000345]
[1757239078586,3.61276624,869.55,868.15,0.20000345]
[1757239080593,3.61276624,869.51,868.15,0.20000345]
[1757239081592,3.61276624,869.45,868.15,0.20000345]
[1757239082692,3.61276624,869.44,868.15,0.20000345]
[1757239083694,3.61276624,869.45,868.15,0.20000345]
[1757239084699,2.58065671,869.04,868.15,0.20000345]
[1757239084898,1.1451221,869.04,868.15,0.20000345]
[1757239085603,3.61276624,869.34,868.15,0.20000345]
[1757239085904,3.61276624,869.29,868.15,0.20000345]
[1757239086805,5.16325912,869.83,868.15,0.20000345]
[1757239086806,1.54839391,868.38,868.15,0.20000345]
[1757239087101,3.61276624,869.27,868.15,0.20000345]
[1757239087903,3.61276624,869.29,868.15,0.20000345]
[1757239089005,3.61276624,869.43,868.15,0.20000345]
[1757239090007,3.61276624,869.37,868.15,0.20000345]
[1757239092110,3.61276624,869.36,868.15,0.20000345]
[1757239093207,3.61276624,869.3,868.15,0.20000345]
[1757239094111,3.61276624,869.44,868.15,0.20000345]
[1757239094609,2.58067085,869.28,868.15,0.20000345]
[1757239095512,2.58067085,869.28,868.16,0.70979612]
[1757239095713,2.58067085,869.52,868.17,0.70979612]
[1757239095913,2.58067085,869.52,868.18,0.70979612]
[1757239096113,2.58067085,869.52,868.15,0.20000345]
[1757239096314,2.58067085,869.53,868.16,0.70979252]
[1757239096513,2.58067085,869.53,868.17,0.70979252]
[1757239096711,2.58067085,869.53,868.18,0.70979252]
[1757239096915,2.58067085,869.53,868.15,0.20000345]
[1757239097112,2.58067085,869.53,868.16,0.70979252]
[1757239097316,2.58067085,869.52,868.17,0.70979252]
[1757239097513,2.58067085,869.52,868.18,0.70979252]
[1757239097716,2.58067085,869.52,868.15,0.20000345]
[1757239098017,2.58067085,869.52,868.16,0.70979014]
[1757239098216,2.58067085,869.49,868.17,0.70979014]
[1757239098414,2.58067085,869.49,868.18,0.70979014]
[1757239098615,2.58067085,869.49,868.15,0.20000345]
[1757239098812,2.58067085,869.5,868.16,0.70978796]
[1757239099117,2.58067085,869.5,868.17,0.70978796]
[1757239099417,2.58067085,869.5,868.18,0.70978796]
[1757239099616,2.58067085,869.5,868.15,0.20000345]
[1757239099816,2.58067085,869.5,868.16,0.70978599]
[1757239100115,2.58067085,869.5,868.17,0.70978599]
[1757239100312,2.58067085,869.5,868.18,0.70978599]
[1757239100612,2.58067085,869.5,868.15,0.20000345]
[1757239100811,2.58067085,869.5,868.16,0.709786]
[1757239101016,2.58067085,869.5,868.17,0.709786]
[1757239101217,2.58067085,869.5,868.18,0.709786]
[1757239101513,2.58067085,869.5,868.15,0.20000345]
[1757239101717,2.58067085,869.5,868.16,0.70978597]
[1757239101916,2.58067085,869.5,868.17,0.70978597]
[1757239102216,2.58067085,869.5,868.18,0.70978597]
[1757239102414,2.58067085,869.5,868.15,0.20000345]
[1757239102614,2.58067085,869.5,868.16,0.709786]
[1757239102815,2.58067085,869.5,868.17,0.709786]
[1757239103021,2.58067085,869.5,868.18,0.709786]
[1757239103220,2.58067085,869.5,868.15,0.20000345]
[1757239103420,2.58067085,869.5,868.16,0.70978609]
[1757239103622,2.58067085,869.5,868.17,0.70978609]
[1757239103822,2.58067085,869.5,868.15,0.20000345]
[1757239104018,2.58067085,869.47,868.16,0.70978609]
[1757239104222,2.58067085,869.47,868.17,0.70978609]
[1757239104519,2.58067085,869.27,868.15,0.20000345]
[1757239104720,1.14514981,869.27,868.16,0.70978606]
[1757239104922,1.14514981,869.27,868.15,0.20000345]
[1757239105119,0.18658121,869.27,868.16,0.70978606]
[1757239105320,0.18658121,869.27,868.15,0.20000345]
[1757239105518,3.61276624,869.38,868.15,0.20000345]
[1757239106622,3.61276624,869.3,868.15,0.20000345]
[1757239107020,1.54840499,868.39,868.15,0.20000345]
[1757239107321,3.61276624,869.3,868.15,0.20000345]
[1757239107525,3.61276624,869.34,868.15,0.20000345]
[1757239108625,5.16325912,869.77,868.15,0.20000345]
[1757239109325,0.20001437,870.0,868.15,0.20000345]
[1757239118230,2.58059844,869.76,868.15,0.20000345]
[1757239118730,2.58059844,869.36,868.15,0.20000345]
[1757239119132,2.58059844,869.38,868.15,0.20000345]
[1757239120628,2.58059844,869.41,868.15,0.20000345]
[1757239123333,2.58059844,869.49,868.15,0.20000345]
[1757239123837,2.58059844,869.47,868.15,0.20000345]
[1757239125935,2.58059844,869.45,868.15,0.20000345]
[1757239129441,2.58059844,869.46,868.15,0.20000345]
[1757239130643,2.58059844,869.44,868.15,0.20000345]
[1757239133144,2.58059844,869.33,868.15,0.20000345]
[1757239135446,2.58059844,869.33,868.16,0.7329926]
[1757239135648,2.58059844,869.59,868.17,0.7329926]
[1757239135846,2.58059844,869.59,868.18,0.7329926]
[1757239136044,2.58059844,869.59,868.19,0.7329926]
[1757239136243,2.58059844,869.59,868.2,0.7329926]
[1757239136448,2.58059844,869.59,868.21,0.7329926]
[1757239136648,2.58059844,869.59,868.15,0.20000345]
[1757239136845,2.58059844,869.59,868.16,0.73299428]
[1757239137048,2.58059844,869.59,868.17,0.73299428]
[1757239137246,2.58059844,869.59,868.18,0.73299428]
[1757239137445,2.58059844,869.59,868.19,0.73299428]
[1757239137749,2.58059844,869.61,868.2,0.73299428]
[1757239137948,2.58059844,869.61,868.21,0.73299428]
[1757239138148,2.58059844,869.61,868.15,0.20000345]
[1757239138344,2.58059844,869.6,868.16,0.73299814]
[1757239138547,2.58059844,869.6,868.17,0.73299814]
[1757239138847,2.58059844,869.6,868.18,0.73299814]
[1757239139053,2.58059844,869.6,868.19,0.73299814]
[1757239139247,2.58059844,869.6,868.2,0.73299814]
[1757239139450,2.58059844,869.66,868.21,0.73299814]
[1757239139750,2.58059844,869.66,868.22,0.73299814]
[1757239139949,2.58059844,869.66,868.15,0.20000345]
[1757239140150,2.58059844,869.66,868.16,0.73300032]
[1757239140350,2.58059844,869.66,868.17,0.73300032]
[1757239140652,2.58059844,869.66,868.18,0.73300032]
[1757239140849,2.58059844,869.66,868.19,0.73300032]
[1757239141051,2.58059844,869.66,868.2,0.73300032]
[1757239141251,2.58059844,869.66,868.21,0.73300032]
[1757239141454,2.58059844,869.66,868.22,0.73300032]
[1757239141654,2.58059844,869.66,868.15,0.20000345]
[1757239141954,2.58059844,869.65,868.16,0.7330027]
[1757239142155,2.58059844,869.65,868.17,0.7330027]
[1757239142354,2.58059844,869.65,868.18,0.7330027]
[1757239142553,2.58059844,869.65,868.19,0.7330027]
[1757239142852,2.58059844,869.65,868.2,0.7330027]
[1757239143050,2.58059844,869.65,868.21,0.7330027]
[1757239143255,2.58059844,869.65,868.15,0.20000345]
[1757239143456,2.58059844,869.65,868.16,0.73300819]
[1757239143750,2.58059844,869.65,868.15,0.20000345]
[1757239143751,2.58059844,869.65,868.17,0.73300819]
[1757239143955,2.58059844,869.65,868.18,0.73300819]
[1757239144156,2.58059844,869.65,868.19,0.73300819]
[1757239144355,2.58059844,869.65,868.2,0.73300819]
[1757239144557,2.58059844,869.53,868.15,0.20000345]
[1757239144756,2.58059844,869.53,868.16,0.73301122]
[1757239144956,2.58059844,869.53,868.17,0.73301122]
[1757239145153,2.58059844,869.48,868.18,0.73301122]
[1757239145357,2.58059844,869.48,868.19,0.73301122]
[1757239145559,3.61276624,869.9,868.15,0.20000345]
[1757239145856,0.20001437,870.0,868.16,0.73291443]
[1757239146053,0.20001437,870.0,868.17,0.73291443]
[1757239146355,0.20001437,870.0,868.15,0.20000345]
[1757239146556,0.20001437,870.0,868.16,0.73241847]
[1757239146759,0.20001437,870.0,868.17,0.73241847]
[1757239146958,0.20001437,870.0,868.15,0.20000345]
[1757239147158,0.20001437,870.0,868.16,0.73242363]
[1757239147358,0.20001437,870.0,868.15,0.20000345]
[1757239155961,2.58059844,869.93,868.15,0.20000345]
[1757239156265,2.58059844,869.53,868.15,0.20000345]
[1757239157364,0.20001437,870.0,868.15,0.20000345]
[1757239157365,2.58059844,869.52,868.15,0.20000345]
[1757239158364,2.58059844,869.42,868.15,0.20000345]
[1757239158566,1.14536422,869.42,868.15,0.20000345]
[1757239158861,3.61276624,869.76,868.15,0.20000345]
[1757239159364,3.61276624,869.79,868.15,0.20000345]
[1757239160462,3.61276624,869.8,868.15,0.20000345]
[1757239161564,3.61276624,869.79,868.15,0.20000345]
[1757239162766,3.61276624,869.77,868.15,0.20000345]
[1757239163564,3.61276624,869.63,868.15,0.20000345]
[1757239164666,3.61276624,869.65,868.15,0.20000345]
[1757239165766,3.61276624,869.73,868.15,0.20000345]
[1757239166664,3.61276624,869.71,868.15,0.20000345]
[1757239167566,2.57385328,869.4,868.15,0.20000345]
[1757239168668,2.57385328,869.39,868.15,0.20000345]
[1757239169563,2.57385328,869.37,868.15,0.20000345]
[1757239172169,2.57385328,869.4,868.15,0.20000345]
[1757239173865,2.57385328,869.33,868.15,0.20000345]
[1757239174169,3.61276624,869.62,868.15,0.20000345]
[1757239175065,3.61276624,869.58,868.15,0.20000345]
[1757239176070,3.61276624,869.61,868.15,0.20000345]
[1757239182975,2.57382541,869.33,868.15,0.20000345]
[1757239183974,3.61276624,869.61,868.15,0.20000345]
[1757239185483,3.61276624,869.63,868.16,0.74341025]
[1757239185679,3.61276624,869.63,868.17,0.74341025]
[1757239185979,3.61276624,869.63,868.18,0.74341025]
[1757239186183,3.61276624,869.63,868.19,0.74341025]
[1757239186382,3.61276624,869.63,868.15,0.20000345]
[1757239186680,3.61276624,869.85,868.16,0.74344099]
[1757239186883,3.61276624,869.85,868.17,0.74344099]
[1757239187085,3.61276624,869.85,868.18,0.74344099]
[1757239187380,3.61276624,869.85,868.19,0.74344099]
[1757239187583,3.61276624,869.85,868.2,0.74344099]
[1757239187783,3.61276624,869.85,868.21,0.74344099]
[1757239187985,3.61276624,869.85,868.22,0.74344099]
[1757239188182,3.61276624,869.85,868.23,0.74344099]
[1757239188380,3.61276624,869.85,868.24,0.74344099]
[1757239188580,3.61276624,869.85,868.25,0.74344099]
[1757239188882,3.61276624,869.85,868.26,0.74344099]
[1757239189080,3.61276624,869.85,868.27,0.74344099]
[1757239189281,3.61276624,869.85,868.15,0.20000345]
[1757239189282,3.61276624,869.85,868.28,0.74344099]
[1757239189481,3.61276624,869.85,868.29,0.74344099]
[1757239189681,3.61276624,869.84,868.3,0.74344099]
[1757239189882,3.61276624,869.84,868.31,0.74344099]
[1757239190186,3.61276624,869.84,868.32,0.74344099]
[1757239190386,3.61276624,869.84,868.33,0.74344099]
[1757239190682,3.61276624,869.87,868.34,0.74344099]
[1757239190986,3.61276624,869.87,868.15,0.20000345]
[1757239191184,3.61276624,869.87,868.16,0.74359952]
[1757239191388,3.61276624,869.87,868.17,0.74359952]
[1757239191589,3.61276624,869.87,868.18,0.74359952]
[1757239191787,3.61276624,869.84,868.19,0.74359952]
[1757239191988,3.61276624,869.84,868.2,0.74359952]
[1757239192186,3.61276624,869.84,868.21,0.74359952]
[1757239192384,3.61276624,869.84,868.22,0.74359952]
[1757239192686,3.61276624,869.84,868.23,0.74359952]
[1757239192989,2.5751339,869.55,868.24,0.74359952]
[1757239193188,2.5751339,869.55,868.25,0.74359952]
[1757239193385,2.5751339,869.55,868.26,0.74359952]
[1757239193685,2.5751339,869.55,868.27,0.74359952]
[1757239193885,2.5751339,869.55,868.28,0.74359952]
[1757239194088,2.5751339,869.57,868.29,0.74359952]
[1757239194385,2.5751339,869.57,868.3,0.74359952]
[1757239194591,2.5751339,869.57,868.31,0.74359952]
[1757239194885,2.5751339,869.57,868.32,0.74359952]
[1757239195090,2.5751339,869.71,868.15,0.20000345]
[1757239195291,2.5751339,869.71,868.16,0.723841]
[1757239195585,2.5751339,869.42,868.15,0.20000345]
[1757239195791,3.61276624,869.76,868.15,0.20000345]
[1757239197087,3.61276624,869.95,868.15,0.20000345]
[1757239198090,3.61276624,869.99,868.15,0.20000345]
[1757239199089,3.61276624,869.98,868.15,0.20000345]
[1757239199889,3.61276624,869.98,868.16,0.74637064]
[1757239200093,0.19995748,870.12,868.17,0.74637064]
[1757239200287,0.19995748,870.12,868.18,0.74637064]
[1757239200491,0.19995748,870.12,868.19,0.74637064]
[1757239200789,0.19995748,870.12,868.2,0.74637064]
[1757239200992,0.19995748,870.12,868.21,0.74637064]
[1757239201189,0.19995748,870.12,868.22,0.74637064]
[1757239201388,0.19995748,870.12,868.23,0.74637064]
[1757239201589,0.19995748,870.12,868.24,0.74637064]
[1757239201788,0.19995748,870.12,868.25,0.74637064]
[1757239201992,0.19995748,870.12,868.26,0.74637064]
[1757239202192,0.19995748,870.12,868.27,0.74637064]
[1757239202393,0.19995748,870.12,868.28,0.74637064]
[1757239202592,0.19995748,870.12,868.15,0.20000345]
[1757239202788,0.19995748,870.12,868.16,0.74645403]
[1757239202993,0.19995748,870.12,868.17,0.74645403]
[1757239203289,0.19995748,870.12,868.18,0.74645403]
[1757239203489,3.61276624,870.64,868.19,0.74645403]
[1757239203687,0.1998834,870.24,868.2,0.74645403]
[1757239203890,0.1998834,870.24,868.21,0.74645403]
[1757239204095,0.1998834,870.24,868.22,0.74645403]
[1757239204293,0.1998834,870.24,868.23,0.74645403]
[1757239204589,0.199857,870.45,868.24,0.74645403]
[1757239204793,0.199857,870.45,868.25,0.74645403]
[1757239204993,0.199857,870.45,868.26,0.74645403]
[1757239205289,0.199857,870.45,868.27,0.74645403]
[1757239205494,0.199857,870.45,868.28,0.74645403]
[1757239205689,0.199857,870.45,868.29,0.74645403]
[1757239205892,0.199857,870.45,868.3,0.74645403]
[1757239206091,0.199857,870.45,868.31,0.74645403]
[1757239206293,0.199857,870.45,868.32,0.74645403]
[1757239206492,0.199857,870.45,868.33,0.74645403]
[1757239206791,0.199857,870.45,868.34,0.74645403]
[1757239206996,0.199857,870.45,868.35,0.74645403]
[1757239207195,0.199857,870.45,868.36,0.74645403]
[1757239207494,0.199857,870.45,868.37,0.74645403]
[1757239207791,0.199857,870.45,868.38,0.74645403]
[1757239207989,0.199857,870.45,868.39,0.74645403]
[1757239208189,0.199857,870.45,868.4,0.74645403]
[1757239208390,0.199857,870.45,868.41,0.74645403]
[1757239208594,0.199857,870.45,868.42,0.74645403]
[1757239208792,0.199857,870.45,868.15,0.20000345]
[1757239208991,0.199857,870.45,868.16,0.74513884]
[1757239209189,0.199857,870.45,868.17,0.74513884]
[1757239209394,2.57905795,870.34,868.18,0.74513884]
[1757239209590,2.57905795,870.34,868.19,0.74513884]
[1757239209796,2.57905795,870.34,868.2,0.74513884]
[1757239209996,2.57905795,870.42,868.21,0.74513884]
[1757239210194,2.57905795,870.42,868.22,0.74513884]
[1757239210393,2.57905795,870.26,868.23,0.74513884]
[1757239210592,2.57905795,870.26,868.24,0.74513884]
[1757239210796,2.57905795,870.26,868.25,0.74513884]
[1757239210997,2.57905795,870.25,868.26,0.74513884]
[1757239211191,2.57905795,870.25,868.27,0.74513884]
[1757239211497,0.199857,870.45,868.28,0.74513884]
[1757239211498,2.57905795,870.2,868.28,0.74513884]
[1757239211694,2.57905795,870.2,868.29,0.74513884]
[1757239211897,2.57905795,870.2,868.3,0.74513884]
[1757239212096,2.57905795,870.22,868.31,0.74513884]
[1757239212297,2.57905795,870.22,868.32,0.74513884]
[1757239212596,2.57905795,870.24,868.33,0.74513884]
[1757239212795,2.57905795,870.24,868.34,0.74513884]
[1757239212997,2.57905795,870.24,868.35,0.74513884]
[1757239213195,2.57905795,870.24,868.36,0.74513884]
[1757239213398,2.57905795,870.24,868.15,0.20000345]
[1757239213596,2.57905795,870.18,868.16,0.74624602]
[1757239213896,2.57905795,870.18,868.17,0.74624602]
[1757239214099,2.57905795,870.18,868.18,0.74624602]
[1757239214297,2.57905795,870.18,868.15,0.20000345]
[1757239214298,2.57905795,870.18,868.19,0.74624602]
[1757239214496,2.57905795,870.18,868.2,0.74624602]
[1757239214699,2.57905795,870.18,868.21,0.74624602]
[1757239214896,2.57905795,870.18,868.22,0.74624602]
[1757239215100,2.57905795,870.18,868.23,0.74624602]
[1757239215305,2.57905795,870.18,868.24,0.74624602]
[1757239215497,2.57905795,870.18,868.25,0.74624602]
[1757239215801,2.57905795,870.23,868.26,0.74624602]
[1757239215998,2.57905795,870.23,868.27,0.74624602]
[1757239216297,0.199857,870.45,868.28,0.74624602]
[1757239216298,2.57905795,870.26,868.28,0.74624602]
[1757239216497,2.57905795,870.26,868.29,0.74624602]
[1757239216798,2.57905795,870.29,868.3,0.74624602]
[1757239217096,2.57905795,870.29,868.31,0.74624602]
[1757239217301,2.57905795,870.29,868.32,0.74624602]
[1757239217500,2.57905795,870.29,868.33,0.74624602]
[1757239217698,2.57905795,870.24,868.34,0.74624602]
[1757239217903,2.57905795,870.24,868.35,0.74624602]
[1757239218100,2.57905795,870.24,868.36,0.74624602]
[1757239218298,2.57905795,870.24,868.37,0.74624602]
[1757239218499,2.57905795,870.24,868.38,0.74624602]
[1757239218697,2.57905795,870.24,868.39,0.74624602]
[1757239218900,2.57905795,870.26,868.4,0.74624602]
[1757239219102,2.57905795,870.26,868.41,0.74624602]
[1757239219405,2.57905795,870.51,868.42,0.74624602]
[1757239219599,2.57905795,870.51,868.43,0.74624602]
[1757239219804,2.57905795,870.54,868.44,0.74624602]
[1757239220002,2.57905795,870.54,868.45,0.74624602]
[1757239220202,2.57905795,870.54,868.46,0.74624602]
[1757239220406,0.19982257,870.69,868.47,0.94606802]
[1757239220603,0.19982257,870.69,868.48,0.74624602]
[1757239220903,0.19982257,870.69,868.49,0.74624602]
[1757239221107,0.19982257,870.69,868.5,0.74624602]
[1757239221310,2.57905795,870.95,868.51,0.74624602]
[1757239221604,0.19978816,870.76,868.52,0.74624602]
[1757239221802,0.19978816,870.76,868.53,0.74624602]
[1757239222003,0.19978816,870.76,868.54,0.74624602]
[1757239222206,0.19978816,870.76,868.55,0.74624602]
[1757239222502,0.19978816,870.76,868.56,0.74624602]
[1757239222706,0.19978816,870.76,868.47,0.199822]
[1757239222707,0.19978816,870.76,868.57,0.74624602]
[1757239222909,0.19978816,870.76,868.58,0.74624602]
[1757239223108,0.19978816,870.76,868.59,0.74624602]
[1757239223312,0.19978816,870.76,868.6,0.74624602]
[1757239223513,0.19978816,870.76,868.61,0.74624602]
[1757239223711,0.19978816,870.76,868.62,0.74624602]
[1757239223911,0.19978816,870.76,868.63,0.74624602]
[1757239224210,0.19978816,870.76,868.64,0.74624602]
[1757239224416,0.19978816,870.76,868.65,0.74624602]
[1757239224710,0.19978816,870.76,868.66,0.74624602]
[1757239224914,0.19978816,870.76,868.67,0.74624602]
[1757239225114,0.19978816,870.76,868.68,0.74624602]
[1757239225410,0.19978816,870.76,868.69,0.74624602]
[1757239225614,0.19978816,870.76,868.7,0.74624602]
[1757239225809,0.19978816,870.76,868.71,0.74624602]
[1757239226012,0.19978816,870.76,868.72,0.74624602]
[1757239226209,0.19978816,870.76,868.73,0.74624602]
[1757239226414,0.19978816,870.76,868.74,0.74624602]
[1757239226610,0.19978816,870.76,868.47,0.199822]
[1757239226611,0.19978816,870.76,868.75,0.74624602]
[1757239226814,0.19978816,870.76,868.76,0.74624602]
[1757239227011,0.19978816,870.76,868.77,0.74624602]
[1757239227214,0.19978816,870.76,868.78,0.74624602]
[1757239227511,0.19978816,870.76,868.79,0.74624602]
[1757239227714,0.19978816,870.76,868.8,0.74624602]
[1757239228014,0.19978816,870.76,868.81,0.74624602]
[1757239228210,0.19978816,870.76,868.82,0.74624602]
[1757239228409,0.19978816,870.76,868.83,0.74624602]
[1757239228613,0.19978816,870.76,868.84,0.74624602]
[1757239228812,0.19978816,870.76,868.85,0.74624602]
[1757239229015,0.19978816,870.76,868.86,0.74624602]
[1757239229212,0.19978816,870.76,868.87,0.74624602]
[1757239229410,0.19978816,870.76,868.88,0.74624602]
[1757239229615,0.19978816,870.76,868.89,0.74624602]
[1757239229916,0.19978816,870.76,868.9,0.74624602]
[1757239230113,0.19978816,870.76,868.91,0.74624602]
[1757239230315,0.19978816,870.76,868.92,0.74624602]
[1757239230516,0.19978816,870.76,868.93,0.74624602]
[1757239230713,0.19978816,870.76,868.94,0.74624602]
[1757239230914,0.19978816,870.76,868.95,0.74624602]
[1757239231215,0.19978816,870.76,868.96,0.74624602]
[1757239231418,0.19978816,870.76,868.97,0.74624602]
[1757239231714,0.19978816,870.76,868.98,0.74624602]
[1757239231915,0.19978816,870.76,868.99,0.74624602]
[1757239232116,0.19978816,870.76,869.0,0.74624602]
[1757239232316,0.19978816,870.76,869.01,0.74624602]
[1757239232620,0.19978816,870.76,868.71,0.7728592]
[1757239232817,0.19978816,870.76,868.72,0.74148669]
[1757239233020,0.19978816,870.76,868.73,0.74148669]
[1757239233316,0.19978816,870.76,868.74,0.74148669]
[1757239233520,0.19978816,870.76,868.75,0.74148669]
[1757239233718,0.19978816,870.76,868.76,0.74148669]
[1757239233919,0.19978816,870.76,868.77,0.74148669]
[1757239234219,0.19978816,870.76,868.78,0.74148669]
[1757239234415,0.19978816,870.76,868.79,0.74148669]
[1757239234620,0.19978816,870.76,868.8,0.74148669]
[1757239234817,0.19978816,870.76,868.81,0.74148669]
[1757239235016,0.19978816,870.76,868.82,0.74148669]
[1757239235221,0.19978816,870.76,868.83,0.74148669]
[1757239235519,0.19978816,870.76,868.47,0.199822]
[1757239235717,0.19978816,870.76,868.48,0.74120272]
[1757239235917,0.19978816,870.76,868.49,0.74120272]
[1757239236118,0.19978816,870.76,868.5,0.74120272]
[1757239236322,0.19978816,870.76,868.51,0.74120272]
[1757239236520,0.19978816,870.76,868.52,0.74120272]
[1757239236719,0.19978816,870.76,868.53,0.74120272]
[1757239236920,0.19978816,870.76,868.54,0.74120272]
[1757239237119,0.19978816,870.76,868.55,0.74120272]
[1757239237323,0.19978816,870.76,868.56,0.74120272]
[1757239237618,0.19978816,870.76,868.57,0.74120272]
[1757239237819,0.19978816,870.76,868.58,0.74120272]
[1757239238023,0.19978816,870.76,868.59,0.74120272]
[1757239238223,0.19978816,870.76,868.6,0.74120272]
[1757239238424,0.19978816,870.76,868.61,0.74120272]
[1757239238724,0.19978816,870.76,868.62,0.74120272]
[1757239239023,0.19978816,870.76,868.63,0.74120272]
[1757239239220,0.19978816,870.76,868.64,0.74120272]
[1757239239421,0.19978816,870.76,868.65,0.74120272]
[1757239239623,0.19978816,870.76,868.66,0.74120272]
[1757239239826,0.19978816,870.76,868.67,0.74120272]
[1757239240026,2.57905795,870.72,868.68,0.74120272]
[1757239240222,2.57905795,870.72,868.69,0.74120272]
[1757239240524,2.57905795,870.61,868.7,0.74120272]
[1757239240727,2.57905795,870.61,868.71,0.74120272]
[1757239241026,2.57905795,870.62,868.72,0.74120272]
[1757239241228,2.57905795,870.62,868.47,0.199822]
[1757239241529,2.57905795,870.62,868.48,0.72125762]
[1757239241825,2.57905795,870.52,868.49,0.72125762]
[1757239242125,2.57905795,870.52,868.5,0.72125762]
[1757239242327,2.57905795,870.52,868.51,0.72125762]
[1757239242627,2.57905795,870.5,868.52,0.72125762]